fUST/lending_fUST_20250731
["ID","MTS","AMOUNT","RATE_DAILY","PERIOD"]
[376370408,1753951843011,-460.0,0.00020544,2]
[376370410,1753951843021,-460.0,0.00020547,2]
[376370412,1753951843030,-460.0,0.00020547,2]
[376370414,1753951843040,-460.0,0.00020547,2]
[376370416,1753951843050,-460.0,0.00020547,2]
[376370418,1753951843060,-460.0,0.00020547,2]
[376370420,1753951843069,-460.0,0.00020547,2]
[376370422,1753951843078,-1112.40803198,0.00020573,2]
[376370424,1753951843088,-460.0,0.00020604,2]
[376370426,1753951843097,-2857.25880471,0.00020624,3]
[376370428,1753951843106,-507.41,0.00020677,2]
[376370430,1753951843115,-1112.40803198,0.00020798,2]
[376370432,1753951843124,-464.74,0.00020818,2]
[376370434,1753951843134,-460.0,0.00020818,2]
[376370436,1753951843143,-460.0,0.00020818,2]
[376370438,1753951843152,-191.6517333,0.00020818,2]
[376370440,1753951843161,-1000.0,0.00020821,2]
[376370442,1753951843170,-500.0,0.00020821,2]
[376370444,1753951843179,-154.68,0.00020821,2]
[376370446,1753951843188,-460.0,0.00020821,2]
[376370448,1753951843197,-460.0,0.00020821,2]
[376370450,1753951843206,-460.0,0.00020821,2]
[376370452,1753951843215,-460.0,0.00020821,2]
[376370454,1753951843224,-2857.25880471,0.00020866,4]
[376370456,1753951843234,-460.0,0.00020878,2]
[376370458,1753951843244,-420.0,0.00020896,2]
[376370460,1753951843253,-1680.0,0.00020897,2]
[376370462,1753951843262,-420.0,0.00020897,2]
[376370464,1753951843271,-420.0,0.00020897,2]
[376370466,1753951843281,-420.0,0.00020897,2]
[376370468,1753951843290,-420.0,0.00020897,2]
[376370470,1753951843299,-165.615668,0.00020951,2]
[376370472,1753951843311,-507.41,0.00020951,2]
[376370473,1753951843321,-1200.0,0.00020997,2]
[376370475,1753951843330,-500.0,0.00021064,2]
[376370477,1753951843339,-464.74,0.00021092,2]
[376370479,1753951843348,-460.0,0.00021092,2]
[376370481,1753951843358,-460.0,0.00021092,2]
[376370482,1753951843366,-460.0,0.00021095,2]
[376370484,1753951843375,-460.0,0.00021095,2]
[376370486,1753951843386,-460.0,0.00021095,2]
[376370488,1753951843395,-460.0,0.00021095,2]
[376370490,1753951843404,-2857.25880471,0.00021107,4]
[376370492,1753951843413,-460.0,0.00021152,2]
[376370494,1753951843423,-199.36820482,0.00021168,2]
[376370496,1753951843432,-507.41,0.00021225,2]
[376370498,1753951843441,-2857.25880471,0.00021348,5]
[376370500,1753951843451,-464.74,0.00021366,2]
[376370502,1753951843460,-460.0,0.00021366,2]
[376370504,1753951843469,-159.49,0.00021366,2]
[376370506,1753951843478,-500.0,0.00021368,2]
[376370508,1753951843487,-460.0,0.00021369,2]
[376370510,1753951843496,-460.0,0.00021369,2]
[376370512,1753951843506,-460.0,0.00021369,2]
[376370514,1753951843515,-460.0,0.00021369,2]
[376370516,1753951843523,-198.72,0.00021426,2]
[376370517,1753951843533,-200.0,0.00021475,15]
[376370519,1753951843542,-200.0,0.00021475,15]
[376370521,1753951843552,-200.0,0.00021475,15]
[376370523,1753951843561,-200.0,0.00021475,15]
[376370525,1753951843571,-320.0,0.00021475,15]
[376370527,1753951843580,-507.41,0.00021499,2]
[376370529,1753951843589,-2857.25880471,0.0002159,5]
[376370531,1753951843598,-464.74,0.0002164,2]
[376370533,1753951843608,-460.0,0.0002164,2]
[376370536,1753951843617,-460.0,0.00021643,2]
[376370538,1753951843627,-460.0,0.00021643,2]
[376370540,1753951843636,-218.26,0.00021643,2]
[376370542,1753951843645,-165.62,0.00021643,2]
[376370544,1753951843654,-309.032,0.00021724,2]
[376370546,1753951843663,-507.41,0.00021773,2]
[376370547,1753951843672,-2857.25880471,0.00021831,6]
[376370550,1753951843682,-464.74,0.00021914,2]
[376370552,1753951843692,-460.0,0.00021914,2]
[376370554,1753951843701,-460.0,0.00021917,2]
[376370556,1753951843711,-460.0,0.00021917,2]
[376370558,1753951843721,-1523.96,0.00022,7]
[376370559,1753951843730,-16380.49,0.00022,7]
[376370562,1753951843740,-161.77,0.00022,2]
[376370563,1753951843749,-165.0,0.00022,2]
[376370566,1753951843758,-507.41,0.00022047,2]
[376370568,1753951843767,-2857.25880471,0.00022072,6]
[376370570,1753951843777,-2607.29,0.000221,7]
[376370572,1753951843786,-464.74,0.00022188,2]
[376370574,1753951843795,-180.25540302,0.00022188,2]
[376370576,1753951843804,-460.0,0.00022191,2]
[376370578,1753951843813,-480.78,0.00022191,2]
[376370580,1753951843823,-2146.0,0.00022195,2]
[376370582,1753951843831,-407.0,0.00022195,2]
[376370584,1753951843841,-635.0,0.00022195,2]
[376370586,1753951843850,-199.36820482,0.00022213,2]
[376370587,1753951843859,-2857.25880471,0.00022314,7]
[376370589,1753951843871,-507.41,0.00022321,2]
[376370591,1753951843879,-464.74,0.00022462,2]
[376370593,1753951843889,-460.0,0.00022465,2]
[376370595,1753951843898,-11422.41337859,0.00022515,2]
[376370596,1753951843907,-2857.25880471,0.00022555,7]
[376370598,1753951843917,-225.81457781,0.00022567,2]
[376370600,1753951843926,-301.11869024,0.00022567,2]
[376370602,1753951843935,-161.77,0.00022571,2]
[376370604,1753951843944,-507.41,0.00022595,2]
[376370605,1753951843954,-151.0,0.00022618,4]
[376370607,1753951843963,-464.74,0.00022736,2]
[376370609,1753951843974,-460.0,0.00022739,2]
[376370611,1753951843983,-984.0,0.00022774,2]
[376370613,1753951843992,-300.0,0.00022774,2]
[376370615,1753951844001,-587.0,0.00022774,2]
[376370617,1753951844010,-2857.25880471,0.00022797,7]
[376370618,1753951844019,-507.41,0.00022869,2]
[376370620,1753951844028,-889.55,0.000229,2]
[376370622,1753951844037,-274.102099,0.000229,7]
[376370624,1753951844046,-151.0,0.000229,7]
[376370626,1753951844056,-151.0,0.0002299,7]
[376370627,1753951844065,-151.0,0.0002299,7]
[376370629,1753951844074,-48004.98,0.00023,2]
[376370631,1753951844083,-151.0,0.00023,7]
[376370633,1753951844092,-151.0,0.00023,7]
[376370635,1753951844101,-151.0,0.00023,7]
[376370637,1753951844110,-151.0,0.00023,7]
[376370638,1753951844119,-151.0,0.00023,7]
[376370640,1753951844128,-151.0,0.00023,7]
[376370642,1753951844137,-151.0,0.00023,7]
[376370644,1753951844146,-151.0,0.00023,7]
[376370646,1753951844155,-151.0,0.00023,7]
[376370648,1753951844164,-151.0,0.00023,7]
[376370650,1753951844173,-151.0,0.00023,7]
[376370651,1753951844182,-151.0,0.00023,7]
[376370653,1753951844191,-151.0,0.00023,7]
[376370655,1753951844201,-160.0,0.00023,2]
[376370657,1753951844210,-464.74,0.0002301,2]
[376370659,1753951844219,-460.0,0.00023013,2]
[376370661,1753951844229,-2857.25880471,0.00023038,8]
[376370663,1753951844238,-151.0,0.00023108,5]
[376370664,1753951844247,-161.77,0.00023142,2]
[376370666,1753951844257,-507.41,0.00023143,2]
[376370668,1753951844266,-1523.96,0.000232,7]
[376370670,1753951844275,-500.0,0.00023256,2]
[376370672,1753951844284,-199.36820482,0.00023259,2]
[376370673,1753951844293,-2857.25880471,0.00023279,8]
[376370675,1753951844303,-464.74,0.00023284,2]
[376370677,1753951844316,-500.0,0.00023287,2]
[376370679,1753951844326,-460.0,0.00023287,2]
[376370681,1753951844335,-16380.49,0.000233,7]
[376370683,1753951844344,-507.41,0.00023417,2]
[376370684,1753951844355,-2857.25880471,0.00023521,9]
[376370686,1753951844364,-464.74,0.00023558,2]
[376370688,1753951844373,-306.76,0.00023561,2]
[376370690,1753951844383,-200.0,0.00023581,15]
[376370692,1753951844394,-200.0,0.00023581,15]
[376370694,1753951844404,-200.0,0.00023581,15]
[376370695,1753951844413,-200.0,0.00023581,15]
[376370697,1753951844422,-200.0,0.00023581,15]
[376370699,1753951844430,-200.0,0.00023581,15]
[376370701,1753951844439,-366.0,0.00023581,15]
[376370703,1753951844448,-151.0,0.00023597,5]
[376370705,1753951844457,-507.41,0.00023691,2]
[376370706,1753951844466,-161.77,0.00023714,2]
[376370708,1753951844476,-548.11,0.00023747,7]
[376370710,1753951844485,-2857.25880471,0.00023762,9]
[376370712,1753951844494,-157.956702,0.00023813,15]
[376370714,1753951844504,-301.991303,0.00023815,7]
[376370715,1753951844513,-464.74,0.00023832,2]
[376370717,1753951844522,-413.61681923,0.000239,2]
[376370719,1753951844532,-150.429748,0.00023911,6]
[376370721,1753951844541,-507.41,0.00023965,2]
[376370723,1753951844550,-160.0,0.00024,7]
[376370725,1753951844559,-2857.25880471,0.00024003,10]
[376370727,1753951844568,-168.0,0.0002407,2]
[376370729,1753951844577,-151.0,0.00024087,6]
[376370730,1753951844586,-2607.29,0.000241,7]
[376370732,1753951844595,-464.74,0.00024106,2]
[376370734,1753951844604,-2200.0,0.00024147,2]
[376370736,1753951844613,-513.800588,0.00024152,2]
[376370738,1753951844622,-160.0,0.000242,7]
[376370739,1753951844630,-500.0,0.00024201,2]
[376370741,1753951844639,-507.41,0.00024239,2]
[376370743,1753951844648,-440.27367773,0.00024243,2]
[376370745,1753951844658,-1759.3336162,0.00024243,2]
[376370747,1753951844667,-2857.25880471,0.00024245,10]
[376370749,1753951844675,-161.77,0.00024285,2]
[376370751,1753951844685,-199.36820482,0.00024304,2]
[376370753,1753951844694,-500.0,0.00024309,2]
[376370755,1753951844703,-500.0,0.00024324,2]
[376370757,1753951844712,-500.0,0.00024373,2]
[376370758,1753951844721,-464.74,0.0002438,2]
[376370760,1753951844730,-168.0,0.0002439,2]
[376370762,1753951844739,-1523.96,0.000244,7]
[376370764,1753951844749,-151.0,0.00024439,7]
[376370766,1753951844759,-151.0,0.00024439,7]
[376370767,1753951844768,-151.0,0.00024439,7]
[376370769,1753951844777,-151.0,0.00024439,7]
[376370771,1753951844786,-151.0,0.00024439,7]
[376370772,1753951844795,-541.098093,0.00024439,7]
[376370773,1753951844803,-541.098093,0.00024439,7]
[376370774,1753951844813,-2857.25880471,0.00024486,11]
[376370775,1753951844822,-150.429748,0.000245,8]
[376370776,1753951844831,-500.0,0.00024507,2]
[376370777,1753951844841,-507.41,0.00024513,2]
[376370778,1753951844851,-500.0,0.00024522,2]
[376370779,1753951844861,-150.429748,0.00024524,6]
[376370780,1753951844870,-151.0,0.00024577,6]
[376370781,1753951844881,-500.0,0.00024579,2]
[376370782,1753951844890,-500.0,0.00024589,2]
[376370783,1753951845000,-42586.89206861,0.000246,2]
[376370784,1753951845071,-5418.08793139,0.000246,2]
[376370785,1753951845081,-151.0,0.000246,7]
[376370787,1753951845090,-151.554634,0.000246,7]
[376370788,1753951845099,-151.0,0.000246,7]
[376370790,1753951845120,-151.0,0.000246,7]
[376370791,1753951845129,-151.0,0.000246,7]
[376370792,1753951845139,-248.937658,0.000246,7]
[376370793,1753951845148,-151.0,0.000246,7]
[376370795,1753951845157,-151.0,0.000246,7]
[376370797,1753951845166,-151.0,0.000246,7]
[376370799,1753951845175,-151.0,0.000246,7]
[376370800,1753951845184,-151.0,0.000246,7]
[376370802,1753951845193,-151.0,0.000246,7]
[376370804,1753951845202,-151.0,0.000246,7]
[376370806,1753951845211,-253.967213,0.000246,7]
[376370808,1753951845220,-16380.49,0.000246,7]
[376370810,1753951845229,-151.0,0.000246,7]
[376370812,1753951845238,-151.0,0.000246,7]
[376370813,1753951845247,-151.0,0.000246,7]
[376370815,1753951845256,-151.0,0.000246,7]
[376370817,1753951845265,-500.0,0.00024626,2]
[376370819,1753951845274,-150.429748,0.00024648,5]
[376370821,1753951845283,-151.0,0.0002465,7]
[376370823,1753951845292,-464.74,0.00024654,2]
[376370825,1753951845301,-300.0,0.00024657,4]
[376370827,1753951845312,-300.0,0.00024657,4]
[376370828,1753951845321,-408.20465232,0.00024657,4]
[376370830,1753951845330,-200.0,0.00024658,15]
[376370832,1753951845339,-380.0,0.00024658,2]
[376370834,1753951845348,-221.92136843,0.00024658,2]
[376370836,1753951845358,-586.0,0.00024658,2]
[376370838,1753951845367,-151.0,0.00024714,7]
[376370840,1753951845379,-238.405844,0.00024714,7]
[376370842,1753951845389,-2857.25880471,0.00024728,11]
[376370844,1753951845398,-507.41,0.00024787,2]
[376370845,1753951845407,-151.0,0.000248,7]
[376370847,1753951845416,-151.0,0.000248,7]
[376370849,1753951845427,-207.79514,0.000248,7]
[376370851,1753951845437,-151.0,0.000248,7]
[376370855,1753951845446,-151.0,0.000248,7]
[376370857,1753951845455,-150.429748,0.00024823,4]
[376370859,1753951845464,-500.0,0.00024827,2]
[376370861,1753951845475,-500.0,0.00024837,2]
[376370863,1753951845484,-161.77,0.00024856,2]
[376370864,1753951845493,-151.0,0.0002489,7]
[376370866,1753951845502,-151.0,0.0002489,7]
[376370868,1753951845510,-151.0,0.0002489,7]
[376370870,1753951845520,-151.0,0.0002489,7]
[376370871,1753951845529,-151.0,0.0002489,7]
[376370873,1753951845538,-151.0,0.0002489,7]
[376370875,1753951845547,-151.0,0.0002489,7]
[376370876,1753951845556,-151.0,0.0002489,7]
[376370878,1753951845565,-151.0,0.0002489,7]
[376370880,1753951845574,-170.310987,0.0002489,7]
[376370882,1753951845583,-158.148214,0.0002489,7]
[376370884,1753951845592,-151.0,0.0002489,7]
[376370886,1753951845601,-151.0,0.0002489,7]
[376370887,1753951845610,-185.056176,0.0002489,7]
[376370889,1753951845619,-151.0,0.0002489,7]
[376370891,1753951845628,-151.0,0.0002489,7]
[376370892,1753951845637,-151.0,0.0002489,7]
[376370893,1753951845646,-151.0,0.0002489,7]
[376370895,1753951845655,-437.57746477,0.000249,2]
[376370897,1753951845664,-151.0,0.000249,7]
[376370899,1753951845672,-151.0,0.000249,7]
[376370901,1753951845681,-197.878272,0.000249,7]
[376370902,1753951845690,-151.0,0.000249,7]
[376370904,1753951845700,-151.0,0.000249,7]
[376370906,1753951845709,-184.305999,0.000249,7]
[376370908,1753951845718,-264.079276,0.000249,7]
[376370910,1753951845727,-157.724338,0.000249,7]
[376370912,1753951845737,-151.0,0.000249,7]
[376370914,1753951845745,-151.0,0.000249,7]
[376370915,1753951845756,-151.0,0.000249,7]
[376370917,1753951845765,-151.0,0.000249,7]
[376370919,1753951845775,-151.0,0.000249,7]
[376370921,1753951845784,-11422.41337859,0.000249,2]
[376370922,1753951845793,-151.0,0.000249,7]
[376370923,1753951845802,-114181.01648905,0.000249,2]
[376370924,1753951845814,-243199.6921793,0.000249,2]
[376370925,1753951845830,-9053.97864907,0.000249,2]
[376370945,1753951846263,-170.37866405,0.00019452,2]
[376370948,1753951846281,-289.62133595,0.00019452,2]
[376370950,1753951846290,-481.07,0.00019726,2]
[376370952,1753951846299,-1936.77072565,0.000249,2]
[376370957,1753951846347,-111041.39779981,0.000249,2]
[376370989,1753951846642,-0.3995233,0.00019178,2]
[376370991,1753951846654,-459.6004767,0.00019178,2]
[376370992,1753951846663,-460.0,0.00019178,2]
[376370993,1753951846672,-10419.69228608,0.000249,2]
[376370994,1753951846683,-842.94405126,0.000249,2]
[376372339,1753951890958,5000.0,0.0001901,6]
[376372340,1753951932132,165.615668,0.00013699,2]
[376372342,1753951990276,-249.32764975,0.00019177,2]
[376372343,1753951998563,-50.67235025,0.00019177,2]
[376372344,1753951998589,-197.326807,0.00019178,2]
[376372353,1753952091319,19197.32632712,0.00018375,2]
[376372354,1753952091342,5702.67367288,0.00018375,2]
[376372363,1753952410331,-191.6112096,0.00019173,2]
[376372364,1753952414206,-141.02077839,0.00019173,2]
[376372365,1753952414229,-346.30370065,0.00019176,2]
[376372366,1753952417397,-451.33237586,0.00019176,2]
[376372367,1753952419516,-307.22085586,0.00019176,2]
[376372368,1753952423013,-95.14306763,0.00019176,2]
[376372369,1753952423034,-257.63607651,0.00019176,2]
[376372370,1753952424686,-42.36392349,0.00019176,2]
[376372371,1753952424709,-300.0,0.00019176,2]
[376372372,1753952424731,-157.63607651,0.00019176,2]
[376372373,1753952426882,-142.36392349,0.00019176,2]
[376372374,1753952426904,-190.98511775,0.00019176,2]
[376372375,1753952429959,-109.01488225,0.00019176,2]
[376372376,1753952429981,-204.07219442,0.00019176,2]
[376372377,1753952435382,-95.92780558,0.00019176,2]
[376372378,1753952435406,-119.86009282,0.00019176,2]
[376372379,1753952438199,-331.33237586,0.00019176,2]
[376372380,1753952441039,-222.15660986,0.00019176,2]
[376372381,1753952443487,-295.87265316,0.00019176,2]
[376372382,1753952445599,-204.08925965,0.00019176,2]
[376372383,1753952446974,191.6112096,0.00018478,2]
[376372384,1753952448833,-26.68900865,0.00019176,2]
[376372385,1753952448855,-173.34696122,0.00019178,2]
[376372386,1753952451342,-286.65303878,0.00019178,2]
[376372387,1753952451363,-80.7299658,0.00019178,2]
[376372388,1753952454549,-201.48293212,0.00019078,2]
[376372389,1753952458626,-111.53214259,0.00019078,2]
[376372390,1753952458647,-247.12471231,0.00019178,2]
[376372391,1753952461744,-267.14246097,0.00019176,2]
[376372393,1753952500271,-45.87261372,0.00019176,2]
[376372394,1753952500294,-171.29117867,0.00019177,2]
[376372395,1753952502521,-128.70882133,0.00019177,2]
[376372396,1753952502543,-55.68851932,0.00019177,2]
[376372398,1753952526161,346.378453,0.00018312,2]
[376372400,1753952575142,-225.13567612,0.00019078,2]
[376372422,1753952701916,1376487.12325503,0.00026499,120]
[376372424,1753952752968,165.0,0.000189,2]
[376372425,1753952767199,165.26503326,0.000189,2]
[376372429,1753952974940,165.615668,0.00013699,2]
[376372461,1753953032282,-225.13567612,0.00019073,2]
[376372462,1753953032293,-156.53603466,0.00019078,2]
[376372463,1753953032303,-262.91102995,0.00019078,2]
[376372464,1753953032312,-500.0,0.00019173,2]
[376372465,1753953032322,-500.0,0.00019173,2]
[376372466,1753953032331,-500.0,0.00019173,2]
[376372467,1753953032341,-929.0,0.00019177,2]
[376372468,1753953032350,-300.0,0.00019177,2]
[376372469,1753953032359,-460.0,0.00019178,2]
[376372470,1753953032369,-460.0,0.00019178,2]
[376372471,1753953032378,-460.0,0.00019178,2]
[376372472,1753953032387,-460.0,0.00019178,2]
[376372473,1753953032397,-460.0,0.00019178,2]
[376372474,1753953032406,-460.0,0.00019178,2]
[376372475,1753953032415,-293.82318843,0.00019178,2]
[376372477,1753953032424,-522.73120998,0.00019178,2]
[376372478,1753953032433,-1089.89648444,0.00019178,2]
[376372480,1753953032442,-587.72653191,0.00019178,2]
[376372481,1753953032451,-291.51552862,0.00019178,2]
[376372482,1753953032460,-460.0,0.00019178,2]
[376372483,1753953032469,-460.0,0.00019178,2]
[376372484,1753953032478,-460.0,0.00019178,2]
[376372485,1753953032487,-460.0,0.00019178,2]
[376372486,1753953032497,-460.0,0.00019178,2]
[376372487,1753953032506,-460.0,0.00019178,2]
[376372488,1753953032516,-460.0,0.00019178,2]
[376372489,1753953032525,-463.20978813,0.00019178,2]
[376372490,1753953032534,-460.0,0.00019178,2]
[376372491,1753953032544,-460.0,0.00019178,2]
[376372492,1753953032553,-448.6738194,0.00019178,2]
[376372494,1753953032562,-460.0,0.00019178,2]
[376372496,1753953032571,-475.70343396,0.00019178,2]
[376372498,1753953032581,-460.0,0.00019178,2]
[376372500,1753953032591,-461.77495199,0.00019178,2]
[376372502,1753953032600,-460.0,0.00019178,2]
[376372504,1753953032609,-460.0,0.00019178,2]
[376372506,1753953032618,-460.0,0.00019178,2]
[376372508,1753953032627,-460.0,0.00019178,2]
[376372510,1753953032636,-460.0,0.00019178,2]
[376372512,1753953032645,-460.0,0.00019178,2]
[376372514,1753953032654,-510.90898875,0.00019178,2]
[376372516,1753953032663,-460.0,0.00019178,2]
[376372518,1753953032672,-460.0,0.00019178,2]
[376372520,1753953032682,-460.0,0.00019178,2]
[376372522,1753953032691,-460.0,0.00019178,2]
[376372524,1753953032700,-460.0,0.00019178,2]
[376372526,1753953032709,-460.0,0.00019178,2]
[376372528,1753953032721,-460.0,0.00019178,2]
[376372530,1753953032730,-460.0,0.00019178,2]
[376372532,1753953032738,-322.55528456,0.00019178,2]
[376372534,1753953032748,-460.0,0.00019178,2]
[376372536,1753953032757,-460.0,0.00019178,2]
[376372538,1753953032767,-460.0,0.00019178,2]
[376372540,1753953032776,-460.0,0.00019178,2]
[376372542,1753953032786,-461.30391424,0.00019178,2]
[376372544,1753953032795,-460.0,0.00019178,2]
[376372546,1753953032806,-460.0,0.00019178,2]
[376372548,1753953032815,-460.0,0.00019178,2]
[376372550,1753953032824,-460.0,0.00019178,2]
[376372551,1753953032834,-460.0,0.00019178,2]
[376372553,1753953032843,-460.0,0.00019178,2]
[376372555,1753953032852,-460.0,0.00019178,2]
[376372557,1753953032862,-460.0,0.00019178,2]
[376372559,1753953032870,-460.0,0.00019178,2]
[376372561,1753953032880,-460.0,0.00019178,2]
[376372563,1753953032889,-460.0,0.00019178,2]
[376372565,1753953032899,-463.64445252,0.00019178,2]
[376372567,1753953032908,-467.28211432,0.00019178,2]
[376372569,1753953032917,-460.0,0.00019178,2]
[376372571,1753953032927,-460.0,0.00019178,2]
[376372573,1753953032936,-460.0,0.00019178,2]
[376372575,1753953032946,-251.00143846,0.00019178,2]
[376372577,1753953032955,-460.0,0.00019178,2]
[376372579,1753953032964,-460.0,0.00019178,2]
[376372581,1753953032974,-460.0,0.00019178,2]
[376372583,1753953032983,-460.0,0.00019178,2]
[376372585,1753953032992,-460.0,0.00019178,2]
[376372587,1753953033001,-460.0,0.00019178,2]
[376372589,1753953033011,-460.0,0.00019178,2]
[376372591,1753953033021,-460.0,0.00019178,2]
[376372593,1753953033030,-460.0,0.00019178,2]
[376372596,1753953033041,-460.0,0.00019178,2]
[376372597,1753953033051,-460.0,0.00019178,2]
[376372599,1753953033060,-460.0,0.00019178,2]
[376372601,1753953033070,-460.0,0.00019178,2]
[376372603,1753953033079,-460.0,0.00019178,2]
[376372605,1753953033088,-460.0,0.00019178,2]
[376372607,1753953033097,-460.0,0.00019178,2]
[376372609,1753953033106,-241.51258533,0.00019178,2]
[376372611,1753953033115,-460.0,0.00019178,2]
[376372613,1753953033124,-460.0,0.00019178,2]
[376372615,1753953033133,-460.0,0.00019178,2]
[376372617,1753953033142,-460.0,0.00019178,2]
[376372619,1753953033151,-460.0,0.00019178,2]
[376372621,1753953033160,-460.0,0.00019178,2]
[376372623,1753953033170,-460.0,0.00019178,2]
[376372625,1753953033180,-460.0,0.00019178,2]
[376372627,1753953033189,-178.71902499,0.00019178,2]
[376372629,1753953033198,-460.0,0.00019178,2]
[376372631,1753953033208,-460.0,0.00019178,2]
[376372633,1753953033217,-460.0,0.00019178,2]
[376372635,1753953033226,-460.0,0.00019178,2]
[376372637,1753953033235,-460.0,0.00019178,2]
[376372639,1753953033245,-460.0,0.00019178,2]
[376372641,1753953033254,-460.0,0.00019178,2]
[376372643,1753953033264,-460.0,0.00019178,2]
[376372645,1753953033273,-460.0,0.00019178,2]
[376372647,1753953033282,-460.0,0.00019178,2]
[376372649,1753953033292,-460.0,0.00019178,2]
[376372651,1753953033302,-497.99877787,0.00019178,2]
[376372653,1753953033311,-460.0,0.00019178,2]
[376372655,1753953033320,-460.0,0.00019178,2]
[376372657,1753953033329,-460.0,0.00019178,2]
[376372659,1753953033339,-460.0,0.00019178,2]
[376372661,1753953033348,-460.0,0.00019178,2]
[376372663,1753953033358,-460.0,0.00019178,2]
[376372665,1753953033367,-460.0,0.00019178,2]
[376372667,1753953033376,-460.0,0.00019178,2]
[376372669,1753953033385,-460.0,0.00019178,2]
[376372671,1753953033394,-460.0,0.00019178,2]
[376372673,1753953033403,-460.0,0.00019178,2]
[376372675,1753953033413,-460.0,0.00019178,2]
[376372676,1753953033422,-460.0,0.00019178,2]
[376372679,1753953033432,-460.0,0.00019178,2]
[376372681,1753953033442,-460.0,0.00019178,2]
[376372683,1753953033451,-460.0,0.00019178,2]
[376372684,1753953033460,-460.0,0.00019178,2]
[376372686,1753953033469,-460.0,0.00019178,2]
[376372688,1753953033478,-460.0,0.00019178,2]
[376372690,1753953033487,-460.0,0.00019178,2]
[376372692,1753953033496,-460.0,0.00019178,2]
[376372694,1753953033505,-460.0,0.00019178,2]
[376372696,1753953033515,-460.0,0.00019178,2]
[376372698,1753953033524,-460.0,0.00019178,2]
[376372700,1753953033534,-461.95116986,0.00019178,2]
[376372702,1753953033543,-460.0,0.00019178,2]
[376372704,1753953033553,-460.0,0.00019178,2]
[376372706,1753953033562,-460.0,0.00019178,2]
[376372708,1753953033571,-460.0,0.00019178,2]
[376372710,1753953033582,-475.43559239,0.00019178,2]
[376372712,1753953033591,-460.0,0.00019178,2]
[376372714,1753953033600,-460.0,0.00019178,2]
[376372716,1753953033612,-460.0,0.00019178,2]
[376372718,1753953033621,-460.0,0.00019178,2]
[376372720,1753953033631,-460.0,0.00019178,2]
[376372722,1753953033640,-460.0,0.00019178,2]
[376372724,1753953033649,-460.0,0.00019178,2]
[376372726,1753953033658,-483.43167956,0.00019178,2]
[376372727,1753953033667,-470.35475274,0.00019178,2]
[376372729,1753953033676,-460.0,0.00019178,2]
[376372731,1753953033686,-460.0,0.00019178,2]
[376372733,1753953033695,-460.0,0.00019178,2]
[376372735,1753953033704,-460.0,0.00019178,2]
[376372736,1753953033715,-460.0,0.00019178,2]
[376372738,1753953033727,-460.0,0.00019178,2]
[376372740,1753953033737,-460.0,0.00019178,2]
[376372742,1753953033746,-460.0,0.00019178,2]
[376372744,1753953033756,-460.0,0.00019178,2]
[376372746,1753953033766,-460.0,0.00019178,2]